lending/lending_fUSD_20250122
["ID","MTS","AMOUNT","RATE_DAILY","PERIOD"]
[349961275,1737538242914,-225.53301102,0.00019443,2]
[349961276,1737538242923,-500.0,0.00019444,2]
[349961277,1737538242933,-500.0,0.00019444,2]
[349961278,1737538242942,-500.0,0.00019444,2]
[349961279,1737538242951,-553.86,0.00019444,2]
[349961280,1737538242962,-500.0,0.00019444,2]
[349961281,1737538242971,-500.0,0.00019444,2]
[349961282,1737538242980,-500.0,0.00019444,2]
[349961283,1737538242990,-500.0,0.00019444,2]
[349961284,1737538242999,-805.89,0.00019444,2]
[349961285,1737538243009,-500.0,0.00019444,2]
[349961286,1737538243019,-500.0,0.00019444,2]
[349961287,1737538243030,-500.0,0.00019444,2]
[349961288,1737538243039,-500.0,0.00019444,2]
[349961289,1737538243049,-500.0,0.00019444,2]
[349961290,1737538243059,-596.1,0.00019534,2]
[349961291,1737538243068,-298.05,0.00019534,2]
[349961292,1737538243078,-298.05,0.00019534,2]
[349961293,1737538243087,-297.53,0.00019534,2]
[349961294,1737538243096,-382.96033992,0.00019627,2]
[349961295,1737538243105,-590.20382325,0.00019628,2]
[349961296,1737538243115,-602.96710998,0.00019716,2]
[349961297,1737538243124,-2004.44,0.00019716,2]
[349961298,1737538243134,-675.04,0.00019716,2]
[349961299,1737538243143,-1005.97,0.00019716,2]
[349961300,1737538243152,-500.0,0.00019716,2]
[349961301,1737538243162,-500.0,0.00019716,2]
[349961302,1737538243174,-1060.86,0.00019716,2]
[349961303,1737538243183,-843.68,0.00019716,2]
[349961304,1737538243192,-716.79,0.00019716,2]
[349961305,1737538243202,-781.19,0.00019716,2]
[349961306,1737538243211,-1782.24,0.00019716,2]
[349961307,1737538243220,-500.0,0.00019716,2]
[349961308,1737538243229,-963.28,0.00019716,2]
[349961309,1737538243239,-1656.69,0.00019716,2]
[349961310,1737538243248,-500.0,0.00019716,2]
[349961311,1737538243258,-1348.81,0.00019716,2]
[349961312,1737538243267,-758.89,0.00019716,2]
[349961313,1737538243278,-685.31,0.00019716,2]
[349961314,1737538243287,-500.0,0.00019716,2]
[349961315,1737538243297,-1180.76,0.00019716,2]
[349961316,1737538243306,-2186.79,0.00019716,2]
[349961317,1737538243315,-848.61,0.00019716,2]
[349961318,1737538243325,-585.71,0.00019716,2]
[349961319,1737538243334,-500.0,0.00019716,2]
[349961320,1737538243343,-1772.51,0.00019716,2]
[349961321,1737538243352,-500.0,0.00019716,2]
[349961322,1737538243362,-500.0,0.00019716,2]
[349961323,1737538243371,-3256.61,0.00019716,2]
[349961324,1737538243380,-1042.29,0.00019716,2]
[349961325,1737538243390,-500.0,0.00019716,2]
[349961326,1737538243399,-845.8,0.00019716,2]
[349961327,1737538243408,-500.0,0.00019716,2]
[349961328,1737538243417,-246.87975232,0.00019716,2]
[349961329,1737538243426,-500.0,0.00019717,2]
[349961330,1737538243436,-211.25410194,0.00019717,2]
[349961331,1737538243445,-500.0,0.00019717,2]
[349961332,1737538243454,-500.0,0.00019717,2]
[349961333,1737538243464,-500.0,0.00019717,2]
[349961334,1737538243474,-500.0,0.00019717,2]
[349961335,1737538243483,-342.5435736,0.00019717,2]
[349961336,1737538243493,-631.72,0.00019717,2]
[349961337,1737538243503,-513.46460012,0.00019717,2]
[349961338,1737538243513,-206.23982834,0.00019717,2]
[349961339,1737538243522,-500.0,0.00019717,2]
[349961340,1737538243532,-729.21,0.00019717,2]
[349961341,1737538243722,-500.0,0.00019717,2]
[349961342,1737538243735,-300.13978384,0.00019717,2]
[349961343,1737538243744,-500.0,0.00019717,2]
[349961344,1737538243753,-500.0,0.00019717,2]
[349961345,1737538243763,-500.0,0.00019717,2]
[349961346,1737538243772,-937.265542,0.00019717,2]
[349961347,1737538243782,-500.0,0.00019717,2]
[349961348,1737538243791,-500.0,0.00019717,2]
[349961349,1737538243800,-500.0,0.00019717,2]
[349961350,1737538243810,-500.0,0.00019717,2]
[349961351,1737538243819,-500.0,0.00019717,2]
[349961352,1737538243828,-500.0,0.00019717,2]
[349961353,1737538243837,-500.0,0.00019717,2]
[349961354,1737538243846,-500.0,0.00019717,2]
[349961355,1737538243855,-500.0,0.00019717,2]
[349961356,1737538243864,-509.13,0.00019717,2]
[349961357,1737538243874,-531.03,0.00019717,2]
[349961358,1737538243883,-781.9,0.00019717,2]
[349961359,1737538243892,-500.0,0.00019717,2]
[349961360,1737538243902,-500.0,0.00019717,2]
[349961361,1737538243912,-500.0,0.00019717,2]
[349961362,1737538243922,-500.0,0.00019717,2]
[349961363,1737538243941,-500.0,0.00019717,2]
[349961364,1737538243956,-500.0,0.00019717,2]
[349961365,1737538243965,-509.75599339,0.00019717,2]
[349961366,1737538243975,-1002.03,0.00019717,2]
[349961367,1737538243984,-500.0,0.00019717,2]
[349961368,1737538243993,-500.0,0.00019717,2]
[349961369,1737538244002,-662.51,0.00019717,2]
[349961370,1737538244012,-575.76,0.00019717,2]
[349961371,1737538244021,-774.82,0.00019717,2]
[349961372,1737538244031,-429.50456623,0.00019717,2]
[349961373,1737538244040,-645.08,0.00019717,2]
[349961374,1737538244049,-500.0,0.00019717,2]
[349961375,1737538244059,-500.0,0.00019717,2]
[349961376,1737538244068,-500.0,0.00019717,2]
[349961377,1737538244077,-517.94,0.00019717,2]
[349961378,1737538244086,-766.26,0.00019717,2]
[349961379,1737538244096,-500.0,0.00019717,2]
[349961380,1737538244106,-526.03,0.00019717,2]
[349961381,1737538244115,-500.0,0.00019717,2]
[349961382,1737538244124,-500.0,0.00019717,2]
[349961383,1737538244133,-500.0,0.00019717,2]
[349961384,1737538244142,-687.8,0.00019717,2]
[349961385,1737538244152,-500.0,0.00019717,2]
[349961386,1737538244163,-760.69,0.00019717,2]
[349961387,1737538244173,-516.6,0.00019717,2]
[349961388,1737538244182,-636.98,0.00019717,2]
[349961389,1737538244191,-579.96,0.00019717,2]
[349961390,1737538244200,-500.0,0.00019717,2]
[349961391,1737538244210,-500.0,0.00019717,2]
[349961392,1737538244219,-500.0,0.00019717,2]
[349961393,1737538244228,-500.0,0.00019717,2]
[349961394,1737538244237,-500.0,0.00019717,2]
[349961395,1737538244246,-500.0,0.00019717,2]
[349961396,1737538244256,-500.0,0.00019717,2]
[349961397,1737538244265,-239.95719577,0.00019717,2]
[349961398,1737538244274,-829.65,0.00019717,2]
[349961399,1737538244284,-500.0,0.00019717,2]
[349961400,1737538244294,-500.0,0.00019717,2]
[349961401,1737538244303,-588.0482145,0.00019717,2]
[349961402,1737538244312,-500.0,0.00019717,2]
[349961403,1737538244322,-726.68,0.00019717,2]
[349961404,1737538244331,-504.78802334,0.00019717,2]
[349961405,1737538244341,-500.0,0.00019717,2]
[349961406,1737538244350,-500.0,0.00019717,2]
[349961407,1737538244360,-508.91499843,0.00019717,2]
[349961408,1737538244370,-500.0,0.00019717,2]
[349961409,1737538244379,-500.0,0.00019717,2]
[349961410,1737538244389,-500.0,0.00019717,2]
[349961411,1737538244399,-500.0,0.00019717,2]
[349961412,1737538244408,-499.89382796,0.00019717,2]
[349961413,1737538244417,-500.0,0.00019717,2]
[349961414,1737538244426,-500.0,0.00019717,2]
[349961415,1737538244436,-500.0,0.00019717,2]
[349961416,1737538244445,-500.0,0.00019717,2]
[349961417,1737538244454,-500.0,0.00019717,2]
[349961418,1737538244464,-500.0,0.00019717,2]
[349961419,1737538244473,-500.0,0.00019717,2]
[349961420,1737538244483,-500.0,0.00019717,2]
[349961421,1737538244492,-500.0,0.00019717,2]
[349961422,1737538244502,-500.0,0.00019717,2]
[349961423,1737538244511,-504.44544008,0.00019717,2]
[349961424,1737538244521,-500.0,0.00019717,2]
[349961425,1737538244530,-928.97,0.00019717,2]
[349961426,1737538244539,-500.0,0.00019717,2]
[349961427,1737538244549,-500.0,0.00019717,2]
[349961428,1737538244559,-738.2,0.00019717,2]
[349961429,1737538244568,-500.0,0.00019717,2]
[349961430,1737538244578,-502.00082423,0.00019717,2]
[349961431,1737538244587,-500.0,0.00019717,2]
[349961432,1737538244596,-882.86,0.00019717,2]
[349961433,1737538244606,-924.85,0.00019717,2]
[349961434,1737538244615,-500.0,0.00019717,2]
[349961435,1737538244625,-612.9136138,0.00019717,2]
[349961436,1737538244634,-500.0,0.00019717,2]
[349961437,1737538244644,-502.79418284,0.00019717,2]
[349961438,1737538244653,-500.0,0.00019717,2]
[349961439,1737538244662,-1009.81,0.00019717,2]
[349961440,1737538244671,-645.04851655,0.00019717,2]
[349961441,1737538244682,-500.0,0.00019717,2]
[349961442,1737538244692,-507.13482335,0.00019717,2]
[349961443,1737538244702,-500.0,0.00019717,2]
[349961444,1737538244711,-500.0,0.00019717,2]
[349961445,1737538244721,-1002.3,0.00019717,2]
[349961446,1737538244733,-500.0,0.00019717,2]
[349961447,1737538244742,-500.0,0.00019717,2]
[349961448,1737538244753,-500.0,0.00019717,2]
[349961449,1737538244761,-957.86,0.00019717,2]
[349961450,1737538244771,-500.0,0.00019717,2]
[349961451,1737538244780,-500.0,0.00019717,2]
[349961452,1737538244790,-423.06456235,0.00019717,2]
[349961453,1737538244800,-500.0,0.00019717,2]
[349961454,1737538244809,-500.0,0.00019717,2]
[349961455,1737538244819,-826.83,0.00019717,2]
[349961456,1737538244829,-500.0,0.00019717,2]
[349961457,1737538244838,-500.0,0.00019717,2]
[349961458,1737538244847,-712.54,0.00019717,2]
[349961459,1737538244856,-500.0,0.00019717,2]
[349961460,1737538244866,-500.0,0.00019717,2]
[349961461,1737538244876,-500.0,0.00019717,2]
[349961462,1737538244885,-500.0,0.00019717,2]
[349961463,1737538244895,-500.0,0.00019717,2]
[349961464,1737538244905,-500.0,0.00019717,2]
[349961465,1737538244914,-500.0,0.00019717,2]
[349961466,1737538244923,-500.0,0.00019717,2]
[349961467,1737538244932,-500.0,0.00019717,2]
[349961468,1737538244942,-509.3,0.00019717,2]
[349961469,1737538244951,-500.0,0.00019717,2]
[349961470,1737538244960,-500.0,0.00019717,2]
[349961471,1737538244969,-500.0,0.00019717,2]
[349961472,1737538244979,-1008.52,0.00019717,2]
[349961473,1737538244989,-1031.45,0.00019717,2]
[349961474,1737538244998,-500.0,0.00019717,2]
[349961475,1737538245008,-833.37,0.00019717,2]
[349961476,1737538245018,-710.67,0.00019717,2]
[349961477,1737538245028,-500.0,0.00019717,2]
[349961478,1737538245037,-500.0,0.00019717,2]
[349961479,1737538245047,-500.0,0.00019717,2]
[349961480,1737538245056,-327.20602335,0.00019717,2]
[349961481,1737538245066,-500.0,0.00019717,2]
[349961482,1737538245075,-1084.63,0.00019717,2]
[349961483,1737538245085,-798.43,0.00019717,2]
[349961484,1737538245094,-500.0,0.00019717,2]
[349961485,1737538245103,-949.36,0.00019717,2]
[349961486,1737538245113,-796.34,0.00019717,2]
[349961487,1737538245122,-620.27,0.00019717,2]
[349961488,1737538245132,-531.9,0.00019717,2]
[349961489,1737538245142,-500.0,0.00019717,2]
[349961490,1737538245151,-657.35,0.00019717,2]
[349961491,1737538245161,-500.0,0.00019717,2]
[349961492,1737538245170,-500.0,0.00019717,2]
[349961493,1737538245180,-500.0,0.00019717,2]
[349961494,1737538245189,-500.0,0.00019717,2]
[349961495,1737538245199,-500.0,0.00019717,2]
[349961496,1737538245208,-694.65,0.00019717,2]
[349961497,1737538245218,-500.0,0.00019717,2]
[349961498,1737538245227,-500.0,0.00019717,2]
[349961499,1737538245236,-500.0,0.00019717,2]
[349961500,1737538245246,-597.53,0.00019717,2]
[349961501,1737538245256,-500.0,0.00019717,2]
[349961502,1737538245266,-500.0,0.00019717,2]
[349961503,1737538245275,-1280.08,0.00019717,2]
[349961504,1737538245284,-705.94,0.00019717,2]
[349961505,1737538245293,-767.04,0.00019717,2]
[349961507,1737538245303,-500.0,0.00019717,2]
[349961509,1737538245312,-1930.76,0.00019717,2]
[349961510,1737538245322,-500.0,0.00019717,2]
[349961511,1737538245331,-577.72,0.00019717,2]
[349961512,1737538245341,-500.0,0.00019717,2]
[349961513,1737538245350,-1787.58,0.00019717,2]
[349961514,1737538245360,-997.82,0.00019717,2]
[349961515,1737538245369,-580.24,0.00019717,2]
[349961516,1737538245379,-500.0,0.00019717,2]
[349961517,1737538245388,-1050.06,0.00019717,2]
[349961518,1737538245398,-696.89,0.00019717,2]
[349961519,1737538245408,-500.0,0.00019717,2]
[349961520,1737538245418,-1413.63,0.00019717,2]
[349961521,1737538245427,-500.0,0.00019717,2]
[349961522,1737538245437,-671.94,0.00019717,2]
[349961523,1737538245446,-500.0,0.00019717,2]
[349961524,1737538245456,-4936.21,0.00019717,2]
[349961525,1737538245466,-500.0,0.00019717,2]
[349961526,1737538245477,-500.0,0.00019717,2]
[349961527,1737538245489,-500.0,0.00019717,2]
[349961528,1737538245499,-489.34553497,0.00019717,2]
[349961529,1737538245509,-500.0,0.00019717,2]
[349961530,1737538245520,-8437.17,0.00019717,2]
[349961531,1737538245530,-1499.18,0.00019717,2]
[349961532,1737538245540,-500.0,0.00019717,2]
[349961533,1737538245549,-500.0,0.00019717,2]
[349961534,1737538245559,-918.57,0.00019717,2]
[349961535,1737538245568,-813.76,0.00019717,2]
[349961536,1737538245578,-500.0,0.00019717,2]
[349961537,1737538245587,-650.13,0.00019717,2]
[349961538,1737538245597,-500.0,0.00019717,2]
[349961539,1737538245606,-500.0,0.00019717,2]
[349961540,1737538245616,-1040.18,0.00019717,2]
[349961541,1737538245625,-3685.27,0.00019717,2]
[349961542,1737538245634,-836.42,0.00019717,2]
[349961543,1737538245644,-579.29,0.00019717,2]
[349961544,1737538245653,-534.02,0.00019717,2]
[349961545,1737538245663,-1105.8,0.00019717,2]
[349961546,1737538245672,-555.49,0.00019717,2]
[349961547,1737538245682,-377.35309206,0.00019717,2]
[349961548,1737538245692,-1805.63,0.00019717,2]
[349961549,1737538245701,-1518.6,0.00019717,2]
[349961550,1737538245710,-500.0,0.00019717,2]
[349961551,1737538245720,-872.42,0.00019717,2]
[349961552,1737538245732,-500.0,0.00019717,2]
[349961553,1737538245742,-1673.84,0.00019717,2]
[349961554,1737538245752,-713.77,0.00019717,2]
[349961555,1737538245762,-500.0,0.00019717,2]
[349961556,1737538245772,-969.31,0.00019717,2]
[349961557,1737538245782,-2518.97,0.00019717,2]
[349961558,1737538245792,-500.0,0.00019717,2]
[349961559,1737538245801,-2362.7,0.00019717,2]
[349961560,1737538245813,-784.51,0.00019717,2]
[349961561,1737538245823,-500.0,0.00019717,2]
[349961562,1737538245833,-500.0,0.00019717,2]
[349961563,1737538245842,-899.56,0.00019717,2]
[349961564,1737538245852,-1046.95,0.00019717,2]
[349961565,1737538245861,-500.0,0.00019717,2]
[349961566,1737538245871,-2277.1,0.00019717,2]
[349961567,1737538245880,-940.23,0.00019717,2]
[349961568,1737538245890,-1469.64,0.00019717,2]
[349961569,1737538245901,-500.0,0.00019717,2]
[349961570,1737538245911,-500.0,0.00019717,2]
[349961571,1737538245920,-1189.43,0.00019717,2]
[349961572,1737538245930,-3503.4,0.00019717,2]
[349961573,1737538245940,-500.0,0.00019717,2]
[349961574,1737538245949,-1372.08,0.00019717,2]
[349961575,1737538245959,-906.49,0.00019717,2]
[349961576,1737538245969,-1043.77,0.00019717,2]
[349961577,1737538245978,-924.18,0.00019717,2]
[349961578,1737538245988,-500.0,0.00019717,2]
[349961579,1737538245997,-557.7,0.00019717,2]
[349961580,1737538246008,-1521.73,0.00019717,2]
[349961582,1737538246017,-500.0,0.00019717,2]
[349961583,1737538246029,-2487.74,0.00019717,2]
[349961584,1737538246038,-603.06,0.00019717,2]
[349961585,1737538246047,-500.0,0.00019717,2]
[349961586,1737538246057,-500.0,0.00019717,2]
[349961587,1737538246069,-2165.48,0.00019717,2]
[349961588,1737538246133,-1043.17,0.00019717,2]
[349961589,1737538246143,-500.0,0.00019717,2]
[349961590,1737538246153,-681.54,0.00019717,2]
[349961591,1737538246163,-2717.23,0.00019717,2]
[349961592,1737538246172,-500.0,0.00019717,2]
[349961593,1737538246182,-1000.0,0.00019717,2]
[349961594,1737538246191,-2638.8,0.00019717,2]
[349961595,1737538246201,-500.0,0.00019717,2]
[349961596,1737538246211,-500.0,0.00019717,2]
[349961597,1737538246220,-1219.77,0.00019717,2]
[349961598,1737538246229,-768.67,0.00019717,2]
[349961599,1737538246239,-500.0,0.00019717,2]
[349961600,1737538246248,-500.0,0.00019717,2]
[349961601,1737538246258,-615.94,0.00019717,2]
[349961602,1737538246268,-500.0,0.00019717,2]
[349961603,1737538246277,-359.11,0.00019717,2]
[349961604,1737538246287,-500.0,0.00019717,2]
[349961605,1737538246297,-898.24,0.00019717,2]
[349961606,1737538246306,-500.0,0.00019717,2]
[349961607,1737538246316,-500.0,0.00019717,2]
[349961608,1737538246326,-2155.69,0.00019717,2]
[349961609,1737538246335,-190.97,0.00019717,2]
[349961610,1737538246345,-585.41,0.00019717,2]
[349961611,1737538246355,-523.53,0.00019717,2]
[349961612,1737538246365,-1031.4948883,0.00019717,5]
[349961613,1737538246375,-500.0,0.00019717,2]
[349961614,1737538246384,-500.0,0.00019717,2]
[349961615,1737538246393,-500.0,0.00019717,2]
[349961616,1737538246403,-3694.04,0.00019717,2]
[349961617,1737538246412,-1953.94,0.00019717,2]
[349961618,1737538246421,-2300.7,0.00019717,2]
[349961619,1737538246431,-1020.11,0.00019717,2]
[349961620,1737538246441,-542.85,0.00019717,2]
[349961621,1737538246450,-500.0,0.00019717,2]
[349961622,1737538246459,-813.07,0.00019717,2]
[349961623,1737538246469,-500.0,0.00019717,2]
[349961624,1737538246479,-500.0,0.00019717,2]
[349961625,1737538246488,-500.0,0.00019717,2]
[349961626,1737538246498,-526.92,0.00019717,2]
[349961627,1737538246509,-1234.83,0.00019717,2]
[349961628,1737538246520,-500.0,0.00019717,2]
[349961629,1737538246529,-843.27,0.00019717,2]
[349961630,1737538246538,-500.0,0.00019717,2]
[349961631,1737538246548,-733.29,0.00019717,2]
[349961632,1737538246557,-500.0,0.00019717,2]
[349961633,1737538246566,-500.0,0.00019717,2]
[349961634,1737538246576,-500.0,0.00019717,2]
[349961635,1737538246585,-1063.94,0.00019717,2]
[349961636,1737538246594,-500.0,0.00019717,2]
[349961637,1737538246603,-500.0,0.00019717,2]
[349961638,1737538246613,-629.37,0.00019717,2]
[349961639,1737538246622,-775.51,0.00019717,2]
[349961640,1737538246631,-1268.07,0.00019717,2]
[349961641,1737538246640,-1356.74,0.00019717,2]
[349961642,1737538246649,-166.6,0.00019717,2]
[349961643,1737538246659,-500.0,0.00019717,2]
[349961644,1737538246668,-624.98147448,0.00019717,2]
[349961645,1737538246678,-2043.6,0.00019717,2]
[349961646,1737538246687,-500.0,0.00019717,2]
[349961647,1737538246697,-500.0,0.00019717,2]
[349961648,1737538246706,-500.0,0.00019717,2]
[349961649,1737538246716,-500.0,0.00019717,2]
[349961650,1737538246725,-500.0,0.00019717,2]
[349961651,1737538246740,-500.0,0.00019717,2]
[349961652,1737538246749,-974.46,0.00019717,2]
[349961653,1737538246759,-500.0,0.00019717,2]
[349961654,1737538246768,-500.0,0.00019718,2]
[349961655,1737538246778,-500.0,0.00019718,2]
[349961656,1737538246788,-553.86,0.00019718,2]
[349961657,1737538246797,-500.0,0.00019718,2]
[349961658,1737538246807,-500.0,0.00019718,2]
[349961659,1737538246817,-500.0,0.00019718,2]
[349961660,1737538246826,-805.89,0.00019718,2]
[349961661,1737538246836,-500.0,0.00019718,2]
[349961662,1737538246846,-500.0,0.00019718,2]
[349961663,1737538246855,-500.0,0.00019773,2]
[349961664,1737538246864,-500.0,0.00019773,2]
[349961665,1737538246874,-469.17,0.00019798,2]
[349961666,1737538246884,-951.86273224,0.00019891,2]
[349961667,1737538246893,-18063.72686618,0.000199,7]
[349961668,1737538246902,-205.03013839,0.000199,2]
[349961669,1737538246912,-382.96033992,0.00019911,2]
[349961670,1737538246922,-590.20382325,0.00019912,2]
[349961671,1737538246932,-151.92369224,0.00019973,2]
[349961672,1737538246942,-151.08149732,0.00019973,2]
[349961673,1737538246954,-500.0,0.00019973,2]
[349961674,1737538246963,-151.18348054,0.00019981,2]
[349961675,1737538246973,-2004.44,0.0001999,2]
[349961676,1737538246982,-675.04,0.0001999,2]
[349961677,1737538246992,-1005.97,0.0001999,2]
[349961678,1737538247001,-500.0,0.0001999,2]
[349961679,1737538247011,-500.0,0.0001999,2]
[349961680,1737538247026,-1060.86,0.0001999,2]
[349961681,1737538247036,-843.68,0.0001999,2]
[349961682,1737538247046,-716.79,0.0001999,2]
[349961683,1737538247056,-781.19,0.0001999,2]
[349961684,1737538247066,-1782.24,0.0001999,2]
[349961685,1737538247078,-500.0,0.0001999,2]
[349961686,1737538247088,-963.28,0.0001999,2]
[349961687,1737538247097,-819.50371243,0.0001999,2]
[349961688,1737538247117,-837.18628757,0.0001999,2]
[349961689,1737538247127,-490.2,0.0001999,2]
[349961690,1737538247137,-1348.81,0.0001999,2]
[349961691,1737538247146,-758.89,0.0001999,2]
[349961692,1737538247157,-685.31,0.0001999,2]
[349961693,1737538247167,-423.41,0.0001999,2]
[349961694,1737538247177,-1180.76,0.0001999,2]
[349961695,1737538247186,-2186.79,0.0001999,2]
[349961696,1737538247195,-848.61,0.0001999,2]
[349961697,1737538247205,-585.71,0.0001999,2]
[349961698,1737538247214,-500.0,0.0001999,2]
[349961699,1737538247223,-1772.51,0.0001999,2]
[349961700,1737538247234,-500.0,0.0001999,2]
[349961701,1737538247243,-219.3264102,0.0001999,2]
[349961702,1737538247253,-337.00443023,0.0001999,2]
[349961703,1737538247968,-613.226289,0.00019442,2]
[349961704,1737538247978,-500.0,0.00019442,2]
[349961705,1737538247988,-500.0,0.00019442,2]
[349961706,1737538247998,-500.0,0.00019443,2]
[349961707,1737538248008,-613.226289,0.00019716,2]
[349961708,1737538248018,-270.47987791,0.00019981,2]
[349961709,1737538248043,-500.0,0.00019716,2]
[349961710,1737538248053,-41.4808,0.00019717,2]
[349961711,1737538248078,-500.0,0.00019443,2]
[349961712,1737538248089,-458.5192,0.00019717,2]
[349961713,1737538248100,-4484.9808,0.00019981,2]
[349961714,1737538248116,-483.9050015,0.00019981,2]
[349961715,1737538248129,-5866.62304318,0.00019981,2]
[349961716,1737538248139,-162.99556977,0.0001999,2]
[349961717,1737538248149,-3256.61,0.0001999,2]
[349961718,1737538248160,-1042.29,0.0001999,2]
[349961719,1737538248170,-845.8,0.0001999,2]
[349961720,1737538248182,-613.226289,0.0001999,2]
[349961721,1737538248192,-508.44,0.0001999,2]
[349961722,1737538248203,-500.0,0.00019991,2]
[349961723,1737538248212,-500.0,0.00019991,2]
[349961724,1737538248223,-500.0,0.00019991,2]
[349961725,1737538248235,-500.0,0.00019991,2]
[349961726,1737538248245,-500.0,0.00019991,2]
[349961727,1737538248258,-729.21,0.00019991,2]
[349961728,1737538248276,-500.0,0.00019991,2]
[349961729,1737538248286,-500.0,0.00019991,2]
[349961730,1737538248296,-500.0,0.00019991,2]
[349961731,1737538248305,-500.0,0.00019991,2]
[349961732,1737538248316,-937.265542,0.00019991,2]
[349961733,1737538248326,-500.0,0.00019991,2]
[349961734,1737538248337,-500.0,0.00019991,2]
[349961735,1737538248347,-500.0,0.00019991,2]
[349961736,1737538248357,-500.0,0.00019991,2]
[349961737,1737538248367,-500.0,0.00019991,2]
[349961738,1737538248378,-500.0,0.00019991,2]
[349961739,1737538248388,-500.0,0.00019991,2]
[349961740,1737538248397,-500.0,0.00019991,2]
[349961741,1737538248408,-509.13,0.00019991,2]
[349961742,1737538248418,-531.03,0.00019991,2]
[349961743,1737538248427,-781.9,0.00019991,2]
[349961744,1737538248436,-500.0,0.00019991,2]
[349961745,1737538248446,-500.0,0.00019991,2]
[349961746,1737538248455,-500.0,0.00019991,2]
[349961747,1737538248465,-500.0,0.00019991,2]
[349961748,1737538248475,-500.0,0.00019991,2]
[349961749,1737538248485,-1002.03,0.00019991,2]
[349961750,1737538248499,-500.0,0.00019991,2]
[349961751,1737538248512,-500.0,0.00019991,2]
[349961752,1737538248522,-662.51,0.00019991,2]
[349961753,1737538248533,-575.76,0.00019991,2]
[349961754,1737538248543,-774.82,0.00019991,2]
[349961755,1737538248554,-645.08,0.00019991,2]
[349961756,1737538248564,-500.0,0.00019991,2]
[349961757,1737538248574,-500.0,0.00019991,2]
[349961758,1737538248585,-500.0,0.00019991,2]
[349961759,1737538248594,-517.94,0.00019991,2]
[349961760,1737538248604,-766.26,0.00019991,2]
[349961761,1737538248613,-500.0,0.00019991,2]
[349961762,1737538248623,-526.03,0.00019991,2]
[349961763,1737538248633,-500.0,0.00019991,2]
[349961764,1737538248643,-500.0,0.00019991,2]
[349961765,1737538248653,-500.0,0.00019991,2]
[349961766,1737538248663,-687.8,0.00019991,2]
[349961767,1737538248673,-500.0,0.00019991,2]
[349961768,1737538248683,-760.69,0.00019991,2]
[349961769,1737538248693,-516.6,0.00019991,2]
[349961770,1737538248703,-636.98,0.00019991,2]
[349961771,1737538248715,-579.96,0.00019991,2]
[349961772,1737538248725,-500.0,0.00019991,2]
[349961773,1737538248739,-500.0,0.00019991,2]
[349961774,1737538248749,-500.0,0.00019991,2]
[349961775,1737538248762,-500.0,0.00019991,2]
[349961776,1737538248772,-500.0,0.00019991,2]
[349961777,1737538248783,-500.0,0.00019991,2]